[Event "Live Chess"]
[Site "Chess.com"]
[Date "2023.05.21"]
[Round "-"]
[White "KeithArkell"]
[Black "Sweet-O"]
[Result "1-0"]
[WhiteElo "2503"]
[BlackElo "1428"]
[TimeControl "300"]
[EndTime "4:16:16 PDT"]
[Termination "KeithArkell won by resignation"]

1. d4 {[%clk 0:04:57.9]} 1... c5 {[%clk 0:04:58.5]} 2. d5 {[%clk 0:04:56.8]}
2... g6 {[%clk 0:04:55]} 3. e4 {[%clk 0:04:54.6]} 3... Bg7 {[%clk 0:04:54.9]} 4.
Nf3 {[%clk 0:04:53.6]} 4... d6 {[%clk 0:04:54.2]} 5. Nc3 {[%clk 0:04:51.2]} 5...
Nf6 {[%clk 0:04:50.8]} 6. Bb5+ {[%clk 0:04:50.2]} 6... Bd7 {[%clk 0:04:49.2]} 7.
a4 {[%clk 0:04:49]} 7... O-O {[%clk 0:04:47.8]} 8. h3 {[%clk 0:04:48.3]} 8... a6
{[%clk 0:04:45.3]} 9. Bc4 {[%clk 0:04:46.9]} 9... Bc8 {[%clk 0:04:34.4]} 10. O-O
{[%clk 0:04:45.6]} 10... Nbd7 {[%clk 0:04:33.7]} 11. Re1 {[%clk 0:04:43.8]}
11... Nb6 {[%clk 0:04:33]} 12. Bd3 {[%clk 0:04:40.6]} 12... e5 {[%clk
0:04:29.8]} 13. dxe6 {[%clk 0:04:39.2]} 13... Bxe6 {[%clk 0:04:28.4]} 14. a5
{[%clk 0:04:38.6]} 14... Nc4 {[%clk 0:04:25.8]} 15. Bxc4 {[%clk 0:04:34.6]}
15... Bxc4 {[%clk 0:04:23.8]} 16. Bf4 {[%clk 0:04:33.7]} 16... Ne8 {[%clk
0:04:10.8]} 17. Nd5 {[%clk 0:04:28.9]} 17... Nf6 {[%clk 0:04:03.8]} 18. Nb6
{[%clk 0:04:23.7]} 18... Ra7 {[%clk 0:03:47.4]} 19. Nxc4 {[%clk 0:04:22.6]}
19... d5 {[%clk 0:03:41.5]} 20. exd5 {[%clk 0:04:19.5]} 20... Qxd5 {[%clk
0:03:38.7]} 21. Qxd5 {[%clk 0:04:09.9]} 21... Nxd5 {[%clk 0:03:38.6]} 22. Bd6
{[%clk 0:04:08.7]} 22... Rc8 {[%clk 0:03:33.8]} 23. c3 {[%clk 0:04:07.8]} 23...
Nf4 {[%clk 0:03:28.7]} 24. Bxf4 {[%clk 0:04:05.6]} 1-0

[Event "Live Chess"]
[Site "Chess.com"]
[Date "2023.05.21"]
[Round "-"]
[White "McSlash1"]
[Black "ranvir123"]
[Result "1-0"]
[WhiteElo "2003"]
[BlackElo "964"]
[TimeControl "300"]
[EndTime "4:16:20 PDT"]
[Termination "McSlash1 won by resignation"]

1. e4 {[%clk 0:04:59.3]} 1... e5 {[%clk 0:04:58.4]} 2. Nf3 {[%clk 0:04:57.8]}
2... Nc6 {[%clk 0:04:55.9]} 3. Bb5 {[%clk 0:04:57.2]} 3... d6 {[%clk 0:04:53.3]}
4. d4 {[%clk 0:04:56.1]} 4... Bd7 {[%clk 0:04:51.7]} 5. Nc3 {[%clk 0:04:54.9]}
5... a6 {[%clk 0:04:44.5]} 6. Ba4 {[%clk 0:04:51.5]} 6... b5 {[%clk 0:04:40.9]}
7. Bb3 {[%clk 0:04:50]} 7... Nf6 {[%clk 0:04:36.7]} 8. Bg5 {[%clk 0:04:48.4]}
8... h6 {[%clk 0:04:35.1]} 9. Bh4 {[%clk 0:04:46.6]} 9... Be7 {[%clk 0:04:32.9]}
10. O-O {[%clk 0:04:43.6]} 10... O-O {[%clk 0:04:30.4]} 11. dxe5 {[%clk
0:04:33.7]} 11... dxe5 {[%clk 0:04:27.6]} 12. Bxf6 {[%clk 0:04:30]} 12... Bxf6
{[%clk 0:04:18.9]} 13. Nd5 {[%clk 0:04:29.9]} 13... Bg4 {[%clk 0:04:14]} 14. h3
{[%clk 0:04:25.9]} 14... Bh5 {[%clk 0:04:10.9]} 15. Qd3 {[%clk 0:04:24]} 15...
Bh4 {[%clk 0:03:37.9]} 16. Nxh4 {[%clk 0:04:16.3]} 16... Qxh4 {[%clk 0:03:33.5]}
17. Kh2 {[%clk 0:04:05.6]} 17... Rad8 {[%clk 0:03:24.7]} 18. f4 {[%clk
0:04:04.4]} 18... exf4 {[%clk 0:03:19.9]} 19. Rxf4 {[%clk 0:04:04.3]} 19...
Qxf4+ {[%clk 0:03:13.2]} 20. Nxf4 {[%clk 0:04:03.6]} 20... Rxd3 {[%clk
0:03:11.5]} 21. cxd3 {[%clk 0:04:03.5]} 21... Bg6 {[%clk 0:03:06.9]} 22. Nxg6
{[%clk 0:04:02.7]} 22... Rd8 {[%clk 0:03:04.1]} 23. Rf1 {[%clk 0:03:52.8]} 23...
Ne5 {[%clk 0:03:00.6]} 24. Nxe5 {[%clk 0:03:46.9]} 1-0

[Event "Live Chess"]
[Site "Chess.com"]
[Date "2023.05.21"]
[Round "-"]
[White "matt1979"]
[Black "HoarseyHorsey"]
[Result "0-1"]
[WhiteElo "1544"]
[BlackElo "1468"]
[TimeControl "300"]
[EndTime "4:16:29 PDT"]
[Termination "HoarseyHorsey won by checkmate"]

1. f4 {[%clk 0:04:58.4]} 1... d5 {[%clk 0:04:58.8]} 2. e3 {[%clk 0:04:56.8]}
2... Nc6 {[%clk 0:04:58.1]} 3. Nf3 {[%clk 0:04:55.4]} 3... Bg4 {[%clk
0:04:56.8]} 4. Bb5 {[%clk 0:04:53.2]} 4... e6 {[%clk 0:04:55.8]} 5. O-O {[%clk
0:04:51.3]} 5... Bc5 {[%clk 0:04:54]} 6. h3 {[%clk 0:04:42.1]} 6... Bxf3 {[%clk
0:04:52.8]} 7. Qxf3 {[%clk 0:04:40.5]} 7... Nf6 {[%clk 0:04:51.3]} 8. d3 {[%clk
0:04:26.4]} 8... Bb6 {[%clk 0:04:45.7]} 9. b3 {[%clk 0:04:20.2]} 9... Qd7 {[%clk
0:04:44.3]} 10. Bb2 {[%clk 0:04:16.7]} 10... a6 {[%clk 0:04:43.1]} 11. Bxc6
{[%clk 0:04:11.3]} 11... Qxc6 {[%clk 0:04:42]} 12. Na3 {[%clk 0:03:49.3]} 12...
Qc5 {[%clk 0:04:12.2]} 13. d4 {[%clk 0:03:38.8]} 13... Qc6 {[%clk 0:04:09.4]}
14. c3 {[%clk 0:03:32.2]} 14... Qd6 {[%clk 0:04:00.5]} 15. Nc2 {[%clk
0:03:22.2]} 15... c6 {[%clk 0:03:51.8]} 16. f5 {[%clk 0:03:15.8]} 16... O-O
{[%clk 0:03:38.7]} 17. fxe6 {[%clk 0:03:11.6]} 17... Qxe6 {[%clk 0:03:36.8]} 18.
Rae1 {[%clk 0:02:52.1]} 18... Ne4 {[%clk 0:03:35.5]} 19. Nb4 {[%clk 0:02:38]}
19... Bc7 {[%clk 0:03:30.8]} 20. Rd1 {[%clk 0:02:19.3]} 20... Rae8 {[%clk
0:03:08.2]} 21. Nd3 {[%clk 0:02:16.6]} 21... f6 {[%clk 0:02:43]} 22. Nf2 {[%clk
0:02:09]} 22... Qd6 {[%clk 0:02:35.4]} 23. Nxe4 {[%clk 0:02:02.6]} 23... Qh2+
{[%clk 0:02:32.9]} 24. Kf2 {[%clk 0:02:01.6]} 24... Rxe4 {[%clk 0:02:26.4]} 25.
Rh1 {[%clk 0:01:54.6]} 25... Qd6 {[%clk 0:02:23.5]} 26. h4 {[%clk 0:01:38.7]}
26... f5 {[%clk 0:02:05.8]} 27. h5 {[%clk 0:01:30.4]} 27... h6 {[%clk
0:02:04.3]} 28. Ke2 {[%clk 0:01:11.6]} 28... f4 {[%clk 0:01:55.4]} 29. Bc1
{[%clk 0:01:08.4]} 29... fxe3 {[%clk 0:01:46.7]} 30. Qh3 {[%clk 0:01:03.1]}
30... Rf2+ {[%clk 0:01:35.8]} 31. Ke1 {[%clk 0:00:58.7]} 31... Qf4 {[%clk
0:01:23.4]} 32. Qc8+ {[%clk 0:00:35.4]} 32... Kh7 {[%clk 0:01:20.2]} 33. Qh3
{[%clk 0:00:18]} 33... Ba5 {[%clk 0:01:02.5]} 34. b4 {[%clk 0:00:16]} 34... Bd8
{[%clk 0:00:57.8]} 35. Rd3 {[%clk 0:00:13.4]} 35... Bh4 {[%clk 0:00:55.3]} 36.
g3 {[%clk 0:00:10.5]} 36... Bxg3 {[%clk 0:00:51.8]} 37. Kd1 {[%clk 0:00:08.8]}
37... e2+ {[%clk 0:00:45.5]} 38. Ke1 {[%clk 0:00:06.6]} 38... Rf1# {[%clk
0:00:39.7]} 0-1

[Event "Live Chess"]
[Site "Chess.com"]
[Date "2023.05.21"]
[Round "-"]
[White "1PRK1"]
[Black "CeladonFish"]
[Result "0-1"]
[WhiteElo "1344"]
[BlackElo "1097"]
[TimeControl "300"]
[EndTime "4:17:05 PDT"]
[Termination "CeladonFish won by resignation"]

1. e4 {[%clk 0:04:57.7]} 1... d6 {[%clk 0:04:57.6]} 2. d4 {[%clk 0:04:55.3]}
2... Nf6 {[%clk 0:04:55.8]} 3. Bd3 {[%clk 0:04:51.4]} 3... g6 {[%clk 0:04:54.7]}
4. Nf3 {[%clk 0:04:47.9]} 4... Bg7 {[%clk 0:04:52.8]} 5. h3 {[%clk 0:04:47.1]}
5... O-O {[%clk 0:04:50.9]} 6. O-O {[%clk 0:04:44.3]} 6... Nc6 {[%clk
0:04:47.2]} 7. d5 {[%clk 0:04:41]} 7... Ne5 {[%clk 0:04:42.1]} 8. Nxe5 {[%clk
0:04:39.8]} 8... dxe5 {[%clk 0:04:41.3]} 9. c4 {[%clk 0:04:34.4]} 9... a6 {[%clk
0:04:35.9]} 10. f4 {[%clk 0:04:33.3]} 10... exf4 {[%clk 0:04:34.2]} 11. Bxf4
{[%clk 0:04:31.4]} 11... Nh5 {[%clk 0:04:28.3]} 12. Bh2 {[%clk 0:04:23.6]} 12...
Bxb2 {[%clk 0:04:26]} 13. g4 {[%clk 0:04:08.6]} 13... Nf6 {[%clk 0:04:20.2]} 14.
Nd2 {[%clk 0:03:55.1]} 14... Bxa1 {[%clk 0:04:18.4]} 15. Qxa1 {[%clk 0:03:53.4]}
15... c6 {[%clk 0:04:05.8]} 16. Be5 {[%clk 0:03:42.3]} 16... cxd5 {[%clk
0:04:02.4]} 17. exd5 {[%clk 0:03:30.4]} 17... a5 {[%clk 0:03:28.6]} 18. g5
{[%clk 0:03:13.5]} 18... Nh5 {[%clk 0:03:17.3]} 19. Kg2 {[%clk 0:02:56.1]} 19...
f6 {[%clk 0:03:02.3]} 20. Bxf6 {[%clk 0:02:44.9]} 20... exf6 {[%clk 0:03:00.1]}
21. gxf6 {[%clk 0:02:41]} 21... Nxf6 {[%clk 0:02:59]} 22. Qb1 {[%clk 0:02:31.6]}
22... Qd7 {[%clk 0:02:46]} 23. Rf3 {[%clk 0:02:17.2]} 23... Qe7 {[%clk
0:02:15.7]} 24. Qf1 {[%clk 0:02:04.8]} 24... Nh5 {[%clk 0:01:52.7]} 25. Ne4
{[%clk 0:01:29.9]} 25... Rxf3 {[%clk 0:01:49.2]} 26. Qxf3 {[%clk 0:01:27.4]}
26... Bf5 {[%clk 0:01:40.5]} 27. Ng3 {[%clk 0:01:03.8]} 27... Nxg3 {[%clk
0:01:36.5]} 28. Kxg3 {[%clk 0:01:01.7]} 28... Bxd3 {[%clk 0:01:33.2]} 29. Qxd3
{[%clk 0:01:00.2]} 29... Qe5+ {[%clk 0:01:29.7]} 30. Kg2 {[%clk 0:00:56.8]}
30... Qg5+ {[%clk 0:01:24.9]} 31. Kh2 {[%clk 0:00:53.9]} 31... Rf8 {[%clk
0:01:15.1]} 32. d6 {[%clk 0:00:47.3]} 0-1

[Event "Live Chess"]
[Site "Chess.com"]
[Date "2023.05.21"]
[Round "-"]
[White "EdenHazard8"]
[Black "peter-785"]
[Result "1-0"]
[WhiteElo "1946"]
[BlackElo "1189"]
[TimeControl "300"]
[EndTime "4:17:08 PDT"]
[Termination "EdenHazard8 won by checkmate"]

1. e4 {[%clk 0:04:58.2]} 1... c5 {[%clk 0:04:58.4]} 2. Nc3 {[%clk 0:04:57.2]}
2... d6 {[%clk 0:04:58]} 3. f4 {[%clk 0:04:56.7]} 3... e6 {[%clk 0:04:57.4]} 4.
Nf3 {[%clk 0:04:56.1]} 4... Nf6 {[%clk 0:04:56.7]} 5. Bb5+ {[%clk 0:04:55.6]}
5... Nbd7 {[%clk 0:04:55]} 6. d3 {[%clk 0:04:54.4]} 6... a6 {[%clk 0:04:54.5]}
7. Bxd7+ {[%clk 0:04:53.5]} 7... Bxd7 {[%clk 0:04:53.7]} 8. O-O {[%clk
0:04:53.4]} 8... b5 {[%clk 0:04:52]} 9. Qe1 {[%clk 0:04:52.7]} 9... Be7 {[%clk
0:04:49.9]} 10. Qg3 {[%clk 0:04:51.6]} 10... O-O {[%clk 0:04:47.2]} 11. f5
{[%clk 0:04:50.5]} 11... e5 {[%clk 0:04:30.6]} 12. Bh6 {[%clk 0:04:48.8]} 12...
g6 {[%clk 0:04:27.8]} 13. Bxf8 {[%clk 0:04:47.1]} 13... Bxf8 {[%clk 0:04:26]}
14. fxg6 {[%clk 0:04:45.8]} 14... hxg6 {[%clk 0:04:22.1]} 15. Ng5 {[%clk
0:04:43.6]} 15... Bg7 {[%clk 0:04:20]} 16. Nd5 {[%clk 0:04:39.7]} 16... c4
{[%clk 0:04:02.3]} 17. Qh4 {[%clk 0:04:35.6]} 17... cxd3 {[%clk 0:03:24.9]} 18.
Nxf6+ {[%clk 0:04:32.8]} 18... Kf8 {[%clk 0:03:17]} 19. Nxd7+ {[%clk 0:04:28.5]}
19... Ke8 {[%clk 0:03:09.4]} 20. Rxf7 {[%clk 0:04:28.4]} 20... Ra7 {[%clk
0:02:52.1]} 21. Qh7 {[%clk 0:04:25.9]} 21... Rxd7 {[%clk 0:02:33.9]} 22. Qg8+
{[%clk 0:04:24.1]} 22... Bf8 {[%clk 0:02:30.5]} 23. Qxf8# {[%clk 0:04:24]} 1-0

[Event "Live Chess"]
[Site "Chess.com"]
[Date "2023.05.21"]
[Round "-"]
[White "sup3rm0nk3y"]
[Black "Prijmak"]
[Result "1-0"]
[WhiteElo "1333"]
[BlackElo "1049"]
[TimeControl "300"]
[EndTime "4:17:10 PDT"]
[Termination "sup3rm0nk3y won by resignation"]

1. e4 {[%clk 0:04:59]} 1... e5 {[%clk 0:04:58.3]} 2. Nf3 {[%clk 0:04:57.8]} 2...
Nc6 {[%clk 0:04:57.3]} 3. Bc4 {[%clk 0:04:56.4]} 3... h6 {[%clk 0:04:56.1]} 4.
d4 {[%clk 0:04:53.9]} 4... exd4 {[%clk 0:04:54.5]} 5. Nxd4 {[%clk 0:04:53.2]}
5... d6 {[%clk 0:04:53.9]} 6. Nc3 {[%clk 0:04:51.8]} 6... Nf6 {[%clk 0:04:49.9]}
7. Be3 {[%clk 0:04:49.7]} 7... Nxd4 {[%clk 0:04:44.5]} 8. Bxd4 {[%clk
0:04:48.5]} 8... Be7 {[%clk 0:04:42.9]} 9. O-O {[%clk 0:04:46.7]} 9... Bg4
{[%clk 0:04:39.9]} 10. Qd3 {[%clk 0:04:44.5]} 10... Be6 {[%clk 0:04:36.7]} 11.
f4 {[%clk 0:04:42]} 11... Bxc4 {[%clk 0:04:33.3]} 12. Qxc4 {[%clk 0:04:40.9]}
12... Qd7 {[%clk 0:04:31.6]} 13. e5 {[%clk 0:04:37.3]} 13... Nh7 {[%clk
0:04:26.9]} 14. Rad1 {[%clk 0:04:31.8]} 14... O-O {[%clk 0:04:25]} 15. f5 {[%clk
0:04:19.6]} 15... Qc6 {[%clk 0:04:12.8]} 16. Qb3 {[%clk 0:04:01.5]} 16... dxe5
{[%clk 0:04:07.2]} 17. Bxe5 {[%clk 0:03:59]} 17... Bf6 {[%clk 0:04:06.1]} 18.
Bxf6 {[%clk 0:03:45.8]} 18... Nxf6 {[%clk 0:04:02.9]} 19. Nd5 {[%clk 0:03:34.8]}
19... Nxd5 {[%clk 0:04:00.1]} 20. Rxd5 {[%clk 0:03:33.4]} 20... Rad8 {[%clk
0:03:55.2]} 21. Rfd1 {[%clk 0:03:24.7]} 21... Rxd5 {[%clk 0:03:49.2]} 22. Rxd5
{[%clk 0:03:20.6]} 22... Qb6+ {[%clk 0:03:45.2]} 23. Qxb6 {[%clk 0:03:15.4]}
23... axb6 {[%clk 0:03:44.1]} 24. Rd7 {[%clk 0:03:13.9]} 24... Rc8 {[%clk
0:03:41.3]} 25. g4 {[%clk 0:03:11.1]} 25... Kf8 {[%clk 0:03:38.7]} 26. Kf2
{[%clk 0:03:09.2]} 26... Kg8 {[%clk 0:03:27.6]} 27. Kf3 {[%clk 0:03:04.8]} 27...
Kf8 {[%clk 0:03:26.4]} 28. Kf4 {[%clk 0:03:03]} 28... Kg8 {[%clk 0:03:25.4]} 29.
h4 {[%clk 0:03:00.9]} 29... Kf8 {[%clk 0:03:24.3]} 30. g5 {[%clk 0:03:00.1]}
30... hxg5+ {[%clk 0:03:22.4]} 31. hxg5 {[%clk 0:02:59.4]} 31... g6 {[%clk
0:03:13.4]} 32. fxg6 {[%clk 0:02:55.4]} 32... fxg6 {[%clk 0:03:12.4]} 33. Ke5
{[%clk 0:02:50.1]} 33... Re8+ {[%clk 0:03:08.9]} 34. Kf6 {[%clk 0:02:48.8]}
34... Kg8 {[%clk 0:02:53.9]} 35. Kxg6 {[%clk 0:02:45.1]} 35... Re6+ {[%clk
0:02:52.5]} 36. Kh5 {[%clk 0:02:43.7]} 36... Re2 {[%clk 0:02:49.1]} 37. Rxc7
{[%clk 0:02:41.1]} 37... Rh2+ {[%clk 0:02:48.2]} 38. Kg6 {[%clk 0:02:36]} 38...
Kf8 {[%clk 0:02:40.4]} 39. Rc8+ {[%clk 0:02:34.1]} 39... Ke7 {[%clk 0:02:35.3]}
40. Kg7 {[%clk 0:02:33.3]} 40... Kd7 {[%clk 0:02:32.5]} 41. Rh8 {[%clk
0:02:31.5]} 41... Rg2 {[%clk 0:02:29.5]} 42. g6 {[%clk 0:02:30.4]} 42... Rxc2
{[%clk 0:02:24.5]} 43. Kf8 {[%clk 0:02:27.4]} 43... Rf2+ {[%clk 0:02:22.7]} 44.
Kg8 {[%clk 0:02:26.1]} 44... Rxb2 {[%clk 0:02:18.5]} 45. g7 {[%clk 0:02:24.7]}
45... Rg2 {[%clk 0:02:12.4]} 46. Rh7 {[%clk 0:02:23.4]} 46... Rxa2 {[%clk
0:02:07.9]} 47. Kh8 {[%clk 0:02:22.5]} 47... Rg2 {[%clk 0:02:03.4]} 48. g8=Q+
{[%clk 0:02:21.3]} 1-0

[Event "Live Chess"]
[Site "Chess.com"]
[Date "2023.05.21"]
[Round "-"]
[White "Biranidun"]
[Black "Tiltador"]
[Result "1-0"]
[WhiteElo "2533"]
[BlackElo "837"]
[TimeControl "300"]
[EndTime "4:17:20 PDT"]
[Termination "Biranidun won by checkmate"]

1. e4 {[%clk 0:04:58.5]} 1... d5 {[%clk 0:04:53.6]} 2. exd5 {[%clk 0:04:57.5]}
2... Qxd5 {[%clk 0:04:52.5]} 3. Nc3 {[%clk 0:04:56.9]} 3... Qd7 {[%clk
0:04:50.3]} 4. Nf3 {[%clk 0:04:55.6]} 4... e6 {[%clk 0:04:49.4]} 5. d4 {[%clk
0:04:54.8]} 5... Nf6 {[%clk 0:04:48.4]} 6. Ne5 {[%clk 0:04:53.8]} 6... Qe7
{[%clk 0:04:41.2]} 7. Bc4 {[%clk 0:04:51.2]} 7... Nc6 {[%clk 0:04:38]} 8. Nxc6
{[%clk 0:04:49.6]} 8... bxc6 {[%clk 0:04:36.7]} 9. Qf3 {[%clk 0:04:49]} 9... Bb7
{[%clk 0:04:33.7]} 10. Bg5 {[%clk 0:04:46.5]} 10... Rb8 {[%clk 0:04:21.3]} 11.
O-O-O {[%clk 0:04:44.8]} 11... c5 {[%clk 0:04:11.8]} 12. d5 {[%clk 0:04:44]}
12... Bxd5 {[%clk 0:03:58.4]} 13. Nxd5 {[%clk 0:04:42.6]} 13... exd5 {[%clk
0:03:53.6]} 14. Rhe1 {[%clk 0:04:41.2]} 14... Qxe1 {[%clk 0:03:40.8]} 15. Rxe1+
{[%clk 0:04:39.9]} 15... Ne4 {[%clk 0:03:34.3]} 16. Rxe4+ {[%clk 0:04:35.7]}
16... dxe4 {[%clk 0:03:32.2]} 17. Qxf7# {[%clk 0:04:35.6]} 1-0

[Event "Live Chess"]
[Site "Chess.com"]
[Date "2023.05.21"]
[Round "-"]
[White "Abde2012"]
[Black "Goblinbasher"]
[Result "0-1"]
[WhiteElo "742"]
[BlackElo "1229"]
[TimeControl "300"]
[EndTime "4:17:30 PDT"]
[Termination "Goblinbasher won by resignation"]

1. d4 {[%clk 0:04:56.8]} 1... f5 {[%clk 0:04:58]} 2. c4 {[%clk 0:04:56.3]} 2...
Nf6 {[%clk 0:04:56]} 3. Bf4 {[%clk 0:04:55.8]} 3... e6 {[%clk 0:04:54.8]} 4. e3
{[%clk 0:04:54.7]} 4... Be7 {[%clk 0:04:50.9]} 5. Bd3 {[%clk 0:04:52]} 5... O-O
{[%clk 0:04:49.1]} 6. Nf3 {[%clk 0:04:51.4]} 6... d6 {[%clk 0:04:47.3]} 7. O-O
{[%clk 0:04:51]} 7... b6 {[%clk 0:04:44.2]} 8. Nc3 {[%clk 0:04:48.8]} 8... Bb7
{[%clk 0:04:43.3]} 9. Qa4 {[%clk 0:04:43.2]} 9... Ne4 {[%clk 0:04:40.3]} 10.
Nxe4 {[%clk 0:04:37.5]} 10... fxe4 {[%clk 0:04:39]} 11. Bxe4 {[%clk 0:04:33.7]}
11... Bxe4 {[%clk 0:04:37.4]} 12. Nd2 {[%clk 0:04:30.2]} 12... Bb7 {[%clk
0:04:34.6]} 13. d5 {[%clk 0:04:27.9]} 13... e5 {[%clk 0:04:32.6]} 14. Bg3 {[%clk
0:04:24.9]} 14... Qe8 {[%clk 0:04:30.3]} 15. Nb3 {[%clk 0:04:20.4]} 15... Qg6
{[%clk 0:04:26.5]} 16. Qb4 {[%clk 0:04:18.5]} 16... Nd7 {[%clk 0:04:23.9]} 17.
c5 {[%clk 0:04:16.4]} 17... dxc5 {[%clk 0:04:19.8]} 18. Qb5 {[%clk 0:04:14.3]}
18... Bc8 {[%clk 0:04:01.5]} 19. Qc6 {[%clk 0:04:07.6]} 19... Rb8 {[%clk
0:03:58.8]} 20. Qxc7 {[%clk 0:04:03.4]} 20... Rb7 {[%clk 0:03:50.8]} 21. Qc6
{[%clk 0:03:58.8]} 21... Nb8 {[%clk 0:03:44.2]} 22. Bxe5 {[%clk 0:03:47.7]}
22... Qxc6 {[%clk 0:03:32.7]} 23. dxc6 {[%clk 0:03:46]} 23... Nxc6 {[%clk
0:03:31.9]} 24. f4 {[%clk 0:03:38.9]} 24... Nxe5 {[%clk 0:03:30.2]} 25. fxe5
{[%clk 0:03:37]} 25... Be6 {[%clk 0:03:26]} 26. Rxf8+ {[%clk 0:03:32.5]} 26...
Bxf8 {[%clk 0:03:23.6]} 27. g3 {[%clk 0:03:25.9]} 27... c4 {[%clk 0:03:19.5]}
28. Nd2 {[%clk 0:03:23.4]} 28... Bc5 {[%clk 0:03:18.6]} 29. b3 {[%clk
0:03:21.3]} 29... Bxe3+ {[%clk 0:03:16.6]} 30. Kf1 {[%clk 0:03:16.4]} 30... Bxd2
{[%clk 0:03:15.3]} 31. Ke2 {[%clk 0:03:15.9]} 31... Bg5 {[%clk 0:03:11.5]} 32.
bxc4 {[%clk 0:03:13.9]} 32... Bxc4+ {[%clk 0:03:09.6]} 0-1

[Event "Live Chess"]
[Site "Chess.com"]
[Date "2023.05.21"]
[Round "-"]
[White "JoeyCage"]
[Black "GwaryTek"]
[Result "0-1"]
[WhiteElo "2289"]
[BlackElo "2065"]
[TimeControl "300"]
[EndTime "4:17:33 PDT"]
[Termination "GwaryTek won by checkmate"]

1. e4 {[%clk 0:04:58.5]} 1... Nf6 {[%clk 0:04:56.6]} 2. e5 {[%clk 0:04:57.3]}
2... Nd5 {[%clk 0:04:53.9]} 3. Qf3 {[%clk 0:04:56.1]} 3... c6 {[%clk 0:04:45.7]}
4. Bc4 {[%clk 0:04:54.3]} 4... g6 {[%clk 0:04:42]} 5. Bxd5 {[%clk 0:04:52.2]}
5... cxd5 {[%clk 0:04:41.9]} 6. Qxd5 {[%clk 0:04:51.2]} 6... Bg7 {[%clk
0:04:41.6]} 7. Nf3 {[%clk 0:04:49]} 7... O-O {[%clk 0:04:40.2]} 8. O-O {[%clk
0:04:47.4]} 8... Nc6 {[%clk 0:04:40.1]} 9. d4 {[%clk 0:04:45.1]} 9... b6 {[%clk
0:04:36.8]} 10. Qe4 {[%clk 0:04:38.5]} 10... Bb7 {[%clk 0:04:35.8]} 11. Qe2
{[%clk 0:04:35.4]} 11... Nb4 {[%clk 0:04:32.7]} 12. Na3 {[%clk 0:04:29.5]} 12...
Rc8 {[%clk 0:04:29.2]} 13. Rd1 {[%clk 0:04:27.5]} 13... Bxf3 {[%clk 0:04:24.6]}
14. gxf3 {[%clk 0:04:23.9]} 14... f6 {[%clk 0:04:15.7]} 15. c3 {[%clk
0:04:21.3]} 15... Nd5 {[%clk 0:04:14.2]} 16. f4 {[%clk 0:04:16.2]} 16... e6
{[%clk 0:04:00.4]} 17. Nc4 {[%clk 0:04:11.5]} 17... fxe5 {[%clk 0:03:56.7]} 18.
fxe5 {[%clk 0:04:08.8]} 18... Qh4 {[%clk 0:03:55]} 19. Nd6 {[%clk 0:04:05.1]}
19... Rxf2 {[%clk 0:03:00.8]} 20. Qxf2 {[%clk 0:03:56.5]} 20... Qg4+ {[%clk
0:02:58.9]} 21. Kf1 {[%clk 0:03:43.1]} 21... Qxd1+ {[%clk 0:02:57.6]} 22. Kg2
{[%clk 0:03:41.8]} 22... Rf8 {[%clk 0:02:54.8]} 23. Qg3 {[%clk 0:03:36.3]} 23...
Qe2+ {[%clk 0:02:49.9]} 24. Kh3 {[%clk 0:03:31.2]} 24... Rf3 {[%clk 0:02:46.6]}
25. Bg5 {[%clk 0:03:28.4]} 25... Rxg3+ {[%clk 0:02:41.4]} 26. hxg3 {[%clk
0:03:26.5]} 26... Qh5+ {[%clk 0:02:38.9]} 27. Bh4 {[%clk 0:03:25.2]} 27... g5
{[%clk 0:02:38.2]} 28. Rf1 {[%clk 0:03:20.9]} 28... gxh4 {[%clk 0:02:33.9]} 29.
g4 {[%clk 0:03:19.3]} 29... Qg5 {[%clk 0:02:28.4]} 30. Nf7 {[%clk 0:03:15.9]}
30... Qe3+ {[%clk 0:02:17.3]} 31. Kxh4 {[%clk 0:03:14.1]} 31... Qe2 {[%clk
0:02:16.2]} 32. Rh1 {[%clk 0:02:58.9]} 32... Kxf7 {[%clk 0:02:13.7]} 33. Kg3
{[%clk 0:02:56.2]} 33... Kg6 {[%clk 0:02:11.3]} 34. Rh2 {[%clk 0:02:53.6]} 34...
Qe3+ {[%clk 0:02:05.8]} 35. Kh4 {[%clk 0:02:52.3]} 35... Bh6 {[%clk 0:02:00.9]}
36. g5 {[%clk 0:02:47.7]} 36... Bxg5+ {[%clk 0:01:59.7]} 37. Kg4 {[%clk
0:02:46.6]} 37... Qf4+ {[%clk 0:01:56.7]} 38. Kh3 {[%clk 0:02:45.3]} 38... Ne3
{[%clk 0:01:46.9]} 39. Rd2 {[%clk 0:02:42.3]} 39... Qh4# {[%clk 0:01:41]} 0-1